bitfinex-derivatives/quotes_BTCF0:USTF0_20251202
["timestamp","ask_amount","ask_price","bid_price","bid_amount"]
[1764696744366,0.0108835,91870.0,91868.0,0.3608]
[1764696744567,0.34664,91859.0,91858.0,0.0001633]
[1764696744875,0.6931748,91859.0,91858.0,0.0001633]
[1764696745075,1.0539748,91859.0,91858.0,0.0001633]
[1764696745478,0.6931751,91856.0,91855.0,0.122]
[1764696747680,0.0108847,91860.0,91859.0,0.68996]
[1764696747978,0.0108831,91874.0,91856.0,0.3608]
[1764696748279,0.0108834,91871.0,91870.0,0.68996]
[1764696748682,0.6931734,91871.0,91870.0,0.33777]
[1764696748878,0.34664,91869.0,91868.0,0.3716837]
[1764696749078,0.0108822,91881.0,91876.0,0.33777]
[1764696749281,0.0108825,91879.0,91876.0,0.33777]
[1764696749779,0.1967,91882.0,91868.0,0.3608]
[1764696749780,0.34664,91869.0,91868.0,0.3608]
[1764696749992,0.68229,91869.0,91868.0,0.3608]
[1764696751784,0.68229,91869.0,91868.0,0.3628]
[1764696752582,0.8898737,91868.0,91867.0,0.0001633]
[1764696752792,0.3296363,91846.0,91845.0,0.122]
[1764696753090,0.010887,91840.0,91839.0,1.0027972]
[1764696753588,0.0108867,91843.0,91842.0,0.64563]
[1764696753969,0.0001633,91852.0,91851.0,0.32344]
[1764696754186,0.0110489,91852.0,91851.0,0.6553]
[1764696754488,0.0001633,91852.0,91851.0,1.0161]
[1764696754886,0.0108835,91870.0,91869.0,0.6553]
[1764696755481,0.3576535,91870.0,91869.0,0.6553]
[1764696756787,0.0108835,91870.0,91869.0,0.6553]
[1764696756978,0.66874,91867.0,91866.0,0.3608]
[1764696757686,0.0128835,91870.0,91861.0,0.6553]
[1764696757687,0.0108845,91862.0,91861.0,0.6553]
[1764696757986,0.66874,91861.0,91860.0,0.0001633]
[1764696761091,0.66874,91861.0,91860.0,0.0021633]
[1764696761392,0.6796256,91852.0,91843.0,0.3608]
[1764696761687,0.6796266,91844.0,91843.0,0.3608]
[1764696762091,0.6796276,91835.0,91834.0,0.3608]
[1764696762289,0.6796288,91825.0,91824.0,0.3608]
[1764696764390,0.66874,91825.0,91824.0,0.3608]
[1764696765094,0.67074,91825.0,91824.0,1.0161]
[1764696765293,0.6796299,91816.0,91815.0,0.0001633]
[1764696766987,0.6796299,91816.0,91787.0,0.3608]
[1764696766988,0.66874,91797.0,91796.0,0.3608]
[1764696767292,0.6796321,91797.0,91796.0,0.3608]
[1764696768198,0.67972543,91797.0,91796.0,0.3608]
[1764696768589,0.68072543,91797.0,91796.0,0.3608]
[1764696769399,0.68072543,91797.0,91789.0,0.01069896]
[1764696769400,0.679633,91790.0,91789.0,0.01069896]
[1764696769595,0.34677,91788.0,91787.0,0.3609634]
[1764696769891,0.34677,91788.0,91787.0,0.6844034]
[1764696770096,0.34677,91788.0,91787.0,1.0162634]
[1764696771001,0.66874,91788.0,91787.0,0.3609634]
[1764696772506,1.02954,91788.0,91787.0,0.0001634]
[1764696772801,0.6796352,91771.0,91770.0,0.3608]
[1764696772991,0.67974071,91771.0,91770.0,0.3608]
[1764696773991,0.68174071,91771.0,91770.0,0.3608]
[1764696774297,0.68174071,91771.0,91764.0,0.01026833]
[1764696774298,0.66874,91765.0,91764.0,0.6553]
[1764696774694,0.66874,91765.0,91761.0,0.38228945]
[1764696774695,0.66874,91762.0,91761.0,0.36090937]
[1764696777507,0.66974,91762.0,91761.0,0.36090937]
[1764696778499,0.66974,91762.0,91761.0,0.00010937]
[1764696779099,0.66974,91762.0,91749.0,0.36090547]
[1764696779100,0.6796377,91750.0,91749.0,0.36090547]
[1764696779402,0.66884551,91750.0,91749.0,0.36090547]
[1764696779604,0.00010551,91750.0,91749.0,1.02674296]
[1764696780208,0.00016349,91759.0,91758.0,0.6661968]
[1764696780510,1.04682,91772.0,91771.0,0.6553]
[1764696780711,0.00016349,91781.0,91780.0,0.6553]
[1764696781003,0.66890349,91781.0,91780.0,0.3608]
[1764696781203,0.66890349,91781.0,91780.0,1.0161]
[1764696781509,0.67979749,91781.0,91780.0,0.3608]
[1764696782012,0.67979749,91781.0,91780.0,0.68424]
[1764696782307,0.00016349,91781.0,91780.0,1.11302]
[1764696783111,0.5932,91802.0,91801.0,0.60129]
[1764696783303,0.0108911,91806.0,91805.0,0.60129]
[1764696783502,0.6040915,91802.0,91801.0,0.3608]
[1764696783805,0.2051,91819.0,91809.0,0.30067]
[1764696784011,0.08806398,91842.0,91841.0,0.6121769]
[1764696784198,0.19829,91871.0,91841.0,0.6121769]
[1764696784199,0.00016339,91851.0,91850.0,0.60129]
[1764696784401,0.0001633,91860.0,91850.0,0.96209]
[1764696784714,0.6040857,91851.0,91850.0,0.3608]
[1764696785598,0.5932,91845.0,91844.0,0.51592]
[1764696786008,0.0108866,91844.0,91843.0,0.51588]
[1764696787212,0.0108863,91847.0,91843.0,0.51588]
[1764696787406,0.19829,91858.0,91841.0,0.36096318]
[1764696787407,0.29402,91842.0,91841.0,0.36096318]
[1764696787611,0.29402,91842.0,91841.0,0.87680318]
[1764696788111,0.29402,91842.0,91841.0,1.17747318]
[1764696788316,0.0108867,91843.0,91841.0,0.66163318]
[1764696788609,0.5932,91838.0,91827.0,0.3608]
[1764696788813,0.5932,91828.0,91827.0,0.3608]
[1764696789014,0.0108905,91811.0,91810.0,0.60129]
[1764696789209,0.29402,91810.0,91809.0,0.3608]
[1764696789401,0.0108892,91822.0,91819.0,0.30067]
[1764696789605,0.0108892,91822.0,91821.0,0.60129]
[1764696790009,0.19829,91830.0,91821.0,0.6121792]
[1764696790211,0.0108885,91828.0,91821.0,0.6121792]
[1764696790510,0.0001633,91831.0,91827.0,0.6723585]
[1764696791013,0.0001633,91831.0,91830.0,0.60129]
[1764696792310,0.0001633,91831.0,91830.0,1.11797]
[1764696794016,0.2941833,91831.0,91830.0,0.51668]
[1764696794220,0.5933633,91831.0,91830.0,0.51664]
[1764696794816,0.5933633,91831.0,91830.0,0.001]
[1764696795824,0.0108882,91830.0,91826.0,0.38536]
[1764696796122,0.0108886,91827.0,91826.0,0.38536]
[1764696796918,0.0001633,91831.0,91830.0,0.30167]
[1764696797119,0.5933633,91831.0,91830.0,0.001]
[1764696797318,0.5933633,91831.0,91802.0,0.3608]
[1764696797319,0.6040905,91811.0,91810.0,0.3608]
[1764696798516,0.0108899,91816.0,91811.0,0.0108904]
[1764696798817,0.0001633,91831.0,91819.0,0.0108895]
[1764696799021,0.0108893,91822.0,91821.0,0.60129]
[1764696799424,0.3049093,91822.0,91821.0,0.60129]
[1764696799621,0.0001633,91831.0,91821.0,0.3608]
[1764696799819,0.0108891,91823.0,91822.0,0.60129]
[1764696800013,0.0001633,91831.0,91822.0,0.60129]
[1764696800217,0.0108889,91825.0,91822.0,0.60129]
[1764696800416,0.0108889,91825.0,91824.0,0.30067]
[1764696801227,0.0011633,91831.0,91830.0,0.60129]
[1764696801424,0.0108867,91844.0,91843.0,0.60129]
[1764696801625,0.0108855,91853.0,91852.0,0.60129]
[1764696802020,0.55909,91882.0,91863.0,0.30067]
[1764696802228,0.55909,91882.0,91852.0,0.3608]
[1764696802229,0.0108835,91870.0,91868.0,0.3608]
[1764696802621,0.0108845,91861.0,91860.0,0.8764833]
[1764696802821,0.0108845,91861.0,91860.0,0.3008333]
[1764696803025,0.3049045,91861.0,91860.0,0.5156833]
[1764696804334,0.3049045,91861.0,91860.0,0.0001633]
[1764696804524,0.3049045,91861.0,91860.0,0.0071633]
[1764696804525,0.3059045,91861.0,91860.0,0.0071633]
[1764696805427,0.6050845,91861.0,91860.0,0.0071633]
[1764696805626,0.6050845,91861.0,91860.0,0.0091633]
[1764696805822,0.0118845,91861.0,91860.0,0.6104533]
[1764696806733,0.0118845,91861.0,91860.0,0.9712533]
[1764696807124,0.6050845,91861.0,91860.0,0.0091633]
[1764696812145,0.604087,91840.0,91833.0,0.3608]
[1764696812330,0.604087,91840.0,91830.0,0.49784]
[1764696812841,0.604087,91840.0,91829.0,0.0108883]
[1764696813229,0.604087,91840.0,91823.0,0.3608]
[1764696813230,0.604087,91840.0,91831.0,0.010888]
[1764696813431,0.5932,91840.0,91839.0,0.93219]
[1764696813741,0.004,91840.0,91839.0,0.93219]
[1764696814235,0.010887,91841.0,91840.0,0.53525]
[1764696814850,0.0001633,91849.0,91848.0,0.53525]
[1764696815139,0.0108834,91871.0,91870.0,0.53525]
[1764696815334,0.010883,91874.0,91873.0,0.53525]
[1764696816245,0.010883,91874.0,91868.0,0.89605]
[1764696816246,0.0108836,91869.0,91868.0,0.89605]
[1764696817045,0.5298536,91869.0,91868.0,0.89605]
[1764696817240,0.0108841,91865.0,91864.0,0.2646933]
[1764696817552,0.0108841,91865.0,91864.0,0.5354133]
[1764696818445,0.0108841,91865.0,91864.0,0.5364133]
[1764696819243,0.0108841,91865.0,91864.0,0.53544021]
[1764696819441,0.0108841,91865.0,91864.0,0.53744021]
[1764696820443,0.5298541,91865.0,91864.0,0.26753]
[1764696820738,0.0001633,91883.0,91869.0,0.0108836]
[1764696820931,0.0001633,91883.0,91864.0,0.003]
[1764696820932,0.010883,91874.0,91873.0,0.89605]
[1764696821237,0.010883,91874.0,91873.0,1.01805]
[1764696822240,0.010883,91874.0,91873.0,1.01905]
[1764696825743,0.05845759,91880.0,91879.0,0.53525]
[1764696825933,0.05845759,91880.0,91873.0,0.3618]
[1764696825934,0.0108821,91882.0,91881.0,0.53525]
[1764696826139,0.529853,91874.0,91873.0,0.89705]
[1764696826343,0.529853,91874.0,91873.0,0.53625]
[1764696826833,0.010883,91874.0,91873.0,0.53625]
[1764696827037,0.3716823,91880.0,91879.0,0.53525]
[1764696827351,0.3716823,91880.0,91879.0,0.53625]
[1764696827741,0.001,91882.0,91881.0,0.53525]
[1764696828647,0.0108821,91882.0,91881.0,0.53525]
[1764696828945,0.0128821,91882.0,91881.0,0.53525]
[1764696829345,0.0218821,91882.0,91881.0,0.53625]
[1764696829735,0.011,91882.0,91881.0,0.53625]
[1764696830450,0.0975849,91927.0,91904.0,0.0108794]
[1764696830751,0.0975849,91927.0,91926.0,0.3608]
[1764696830752,0.51897,91927.0,91926.0,0.3608]
[1764696831245,0.00365,91928.0,91926.0,0.3608]
[1764696831548,1.5,91927.0,91926.0,0.37112217]
[1764696832441,1.502,91927.0,91926.0,0.37112217]
[1764696832844,0.00365,91928.0,91927.0,0.0108767]
[1764696833044,0.00365,91928.0,91926.0,0.37212217]
[1764696833348,0.51897,91927.0,91926.0,0.37212217]
[1764696834552,2.02097,91927.0,91926.0,0.3618]
[1764696835148,0.5298478,91918.0,91917.0,0.00016293]
[1764696835541,0.15436,91923.0,91903.0,0.3608]
[1764696835542,0.5298495,91904.0,91903.0,0.3608]
[1764696835740,0.2684808,91893.0,91892.0,0.3608]
[1764696835950,0.5298508,91893.0,91892.0,0.3608]
[1764696836246,0.51897,91891.0,91890.0,0.3608]
[1764696837757,0.51897,91891.0,91890.0,0.3618]
[1764696838540,0.51897,91891.0,91890.0,0.7226]
[1764696838853,0.51897,91891.0,91890.0,0.001]
[1764696839651,0.51897,91891.0,91890.0,0.3618]
[1764696839652,0.52497,91891.0,91890.0,0.3618]
[1764696840142,0.51897,91888.0,91887.0,0.00010606]
[1764696841350,0.0108811,91890.0,91881.0,0.3608]
[1764696841351,0.0108821,91882.0,91881.0,0.35230606]
[1764696841957,0.5298521,91882.0,91881.0,0.35230606]
[1764696842256,0.15436,91884.0,91881.0,0.35230606]
[1764696842456,0.15436,91897.0,91887.0,0.001]
[1764696842657,0.00016319,91900.0,91899.0,0.0110201]
[1764696842858,0.00026925,91900.0,91899.0,0.0110201]
[1764696843260,0.29631925,91900.0,91899.0,0.00014]
[1764696843558,0.4571,91897.0,91896.0,0.72174]
[1764696844059,0.00026925,91900.0,91899.0,0.00014]
[1764696845461,0.00126925,91900.0,91899.0,0.00014]
[1764696845661,0.00126925,91900.0,91899.0,7e-05]
[1764696845966,0.00326925,91900.0,91899.0,0.00014]
[1764696847051,0.73778,91897.0,91896.0,0.7216]
[1764696847847,0.0108828,91876.0,91875.0,0.01057803]
[1764696848046,0.0108805,91896.0,91875.0,0.01057803]
[1764696848047,0.0108824,91880.0,91875.0,0.01057803]
[1764696848249,0.0108825,91878.0,91877.0,0.00014]
[1764696848455,0.0108815,91887.0,91886.0,0.00014]
[1764696848765,0.0108815,91887.0,91886.0,0.36094]
[1764696848947,0.5876115,91887.0,91886.0,0.3608]
[1764696849564,0.0108815,91887.0,91886.0,0.36094]
[1764696849759,0.5876115,91887.0,91886.0,0.3608]
[1764696850060,0.0108808,91893.0,91892.0,7e-05]
[1764696850366,0.29605,91887.0,91886.0,0.3608]
[1764696850657,0.57673,91887.0,91886.0,0.36087]
[1764696850848,0.58073,91887.0,91886.0,0.36087]
[1764696851058,0.004,91887.0,91886.0,0.36094]
[1764696851461,0.16105,91897.0,91886.0,0.3608]
[1764696851851,0.0108813,91889.0,91888.0,7e-05]
[1764696852163,0.3069313,91889.0,91888.0,7e-05]
[1764696852371,0.29605,91889.0,91888.0,7e-05]
[1764696853365,0.57673,91887.0,91886.0,0.3638]
[1764696853753,0.29605,91887.0,91886.0,0.36394]
[1764696853966,0.002,91889.0,91888.0,0.00014]
[1764696854266,0.57673,91887.0,91886.0,0.3608]
[1764696854765,0.58173,91887.0,91886.0,0.3608]
[1764696855270,0.57873,91887.0,91886.0,0.3608]
[1764696855564,0.58173,91887.0,91886.0,0.3608]
[1764696856969,0.57673,91876.0,91875.0,0.02133543]
[1764696857260,0.57681556,91876.0,91875.0,0.02133543]
[1764696857562,8.556e-05,91876.0,91875.0,0.05193422]
[1764696858263,0.16105,91897.0,91891.0,0.010951]
[1764696858264,0.3069309,91892.0,91891.0,0.010951]
[1764696858461,0.3069309,91892.0,91891.0,0.371751]
[1764696859368,0.29605,91892.0,91891.0,0.371751]
[1764696859564,0.0108808,91893.0,91892.0,0.00014]
[1764696860261,0.3069308,91893.0,91892.0,0.00014]
[1764696860462,0.57673,91892.0,91891.0,0.3608]
[1764696860661,0.57873,91892.0,91891.0,0.3608]
[1764696861361,0.57673,91892.0,91891.0,0.3608]
[1764696862266,0.57873,91892.0,91891.0,0.3608]
[1764696863054,0.58173,91892.0,91891.0,0.3608]
[1764696863659,0.57973,91892.0,91891.0,0.3608]
[1764696863862,0.58173,91892.0,91891.0,0.3608]
[1764696864472,0.57973,91892.0,91891.0,0.3608]
[1764696864680,0.58173,91892.0,91891.0,0.3608]
[1764696865166,0.57673,91876.0,91873.0,0.38917022]
[1764696865360,0.57533,91876.0,91875.0,0.04164661]
[1764696865670,0.57533,91876.0,91875.0,0.03076381]
[1764696865873,0.57533,91876.0,91875.0,0.04133719]
[1764696867074,0.57633,91876.0,91875.0,0.04133719]
[1764696867573,0.57633,91876.0,91875.0,0.04427719]
[1764696867871,0.57833,91876.0,91875.0,0.04427719]
[1764696868265,0.57733,91876.0,91875.0,0.04133719]
[1764696868472,0.57833,91876.0,91875.0,0.04133719]
[1764696869258,0.57633,91876.0,91875.0,0.04133719]
[1764696869473,0.57833,91876.0,91875.0,0.04133719]
[1764696869673,0.57833,91876.0,91875.0,0.04427719]
[1764696869880,0.57833,91876.0,91875.0,0.03427718]
[1764696870062,0.57833,91876.0,91875.0,0.0207638]
[1764696870267,0.57673,91858.0,91857.0,0.02837022]
[1764696870474,0.587615,91857.0,91856.0,0.371685]
[1764696870860,0.57673,91857.0,91856.0,0.371685]
[1764696871463,0.57773,91857.0,91856.0,0.371685]
[1764696871776,0.001,91857.0,91856.0,0.38506425]
[1764696872480,0.001,91857.0,91856.0,0.41454224]
[1764696872769,0.001,91857.0,91856.0,0.92874224]
[1764696872971,0.0001633,91867.0,91866.0,0.012354]
[1764696873174,0.0001633,91867.0,91866.0,0.373154]
[1764696873472,0.0001633,91867.0,91866.0,0.773154]
[1764696873674,0.0108812,91890.0,91883.0,0.0108819]
[1764696873868,0.42892,91884.0,91883.0,0.3716819]
[1764696874675,0.42992,91884.0,91883.0,0.3716819]
[1764696874981,0.42992,91884.0,91883.0,0.3608]
[1764696875677,0.42996,91884.0,91883.0,0.3716819]
[1764696876068,0.429,91884.0,91883.0,0.3716819]
[1764696876278,0.70215,91884.0,91883.0,0.7324819]
[1764696876678,0.16417,91884.0,91883.0,0.7324819]
[1764696876990,0.00312,91884.0,91883.0,0.7324819]
[1764696878783,0.00212,91884.0,91883.0,0.7324819]
[1764696879283,0.0001633,91893.0,91892.0,0.0108809]
[1764696879466,0.5401833,91893.0,91892.0,0.3716809]
[1764696880682,0.0051633,91893.0,91892.0,0.3716809]
[1764696881180,0.5451833,91893.0,91892.0,0.3716809]
[1764696881366,0.5451833,91893.0,91892.0,0.8857609]
[1764696881572,0.5451833,91893.0,91892.0,0.3716809]
[1764696881772,0.5451833,91893.0,91892.0,0.8857609]
[1764696882674,0.5451833,91893.0,91892.0,0.3716809]
[1764696885979,0.5451833,91893.0,91892.0,0.3608]
[1764696887281,0.0051633,91893.0,91892.0,0.39109196]
[1764696887475,0.00012,91900.0,91899.0,0.01088]
[1764696887680,0.00012,91900.0,91899.0,0.91592156]
[1764696888688,0.16105,91908.0,91907.0,0.0108791]
[1764696888870,0.16105,91908.0,91907.0,0.40196066]
[1764696889072,0.0001633,91909.0,91907.0,0.40196066]
[1764696889272,0.0001633,91909.0,91907.0,0.3716791]
[1764696889689,0.001,91908.0,91907.0,0.3796791]
[1764696889886,0.001,91908.0,91907.0,0.3806791]
[1764696890571,0.00365,91928.0,91919.0,0.0108777]
[1764696890772,1.6730768,91927.0,91919.0,0.8855577]
[1764696891579,0.54002,91920.0,91919.0,0.88540367]
[1764696891779,0.54002,91920.0,91919.0,0.38344137]
[1764696892594,1.6730768,91927.0,91926.0,0.0108769]
[1764696894879,1.6740768,91927.0,91926.0,0.0108769]
[1764696895285,1.6652,91927.0,91926.0,0.0108769]
[1764696895488,1.6652,91927.0,91926.0,0.5246369]
[1764696896581,0.1652,91927.0,91926.0,0.5246369]
[1764696897591,0.003,91927.0,91926.0,0.5246369]
[1764696898889,0.00304,91927.0,91926.0,0.5246369]
[1764696900493,0.54306,91927.0,91926.0,0.0108769]
[1764696900694,0.00304,91927.0,91926.0,0.5245169]
[1764696902289,0.00304,91927.0,91926.0,0.6245169]
[1764696902601,0.70222,91949.0,91948.0,0.0108743]
[1764696902901,0.6779841,91949.0,91948.0,0.3608]
[1764696903094,0.6779841,91949.0,91948.0,0.87436]
[1764696903286,0.0108747,91944.0,91943.0,0.3608]
[1764696903494,0.5157871,91924.0,91923.0,0.86649]
[1764696903697,0.5157871,91924.0,91923.0,1.21149]
[1764696903891,0.17293,91930.0,91929.0,0.0108765]
[1764696904093,1e-08,91933.0,91932.0,0.5189461]
[1764696904290,8e-05,91950.0,91949.0,0.5189441]
[1764696904489,0.17293,91970.0,91965.0,0.0108722]
[1764696904490,0.67784,91970.0,91965.0,0.0108722]
[1764696904695,0.50491,91968.0,91967.0,0.3716719]
[1764696905101,0.50491,91968.0,91967.0,0.3608]
[1764696905300,0.50491,91968.0,91967.0,0.86887]
[1764696905703,0.50491,91968.0,91967.0,0.62046]
[1764696905999,0.50491,91968.0,91967.0,0.63086254]
[1764696906200,0.50507312,91977.0,91976.0,0.50807]
[1764696906400,0.50507312,91977.0,91976.0,0.5189409]
[1764696906401,0.00016312,91977.0,91976.0,0.5189409]
[1764696906804,0.50507312,91977.0,91976.0,0.50807]
[1764696907002,0.50507312,91977.0,91976.0,1.0323809]
[1764696907505,0.90507312,91977.0,91976.0,0.007]
[1764696907897,0.50491,91968.0,91967.0,0.001]
[1764696908097,0.50491,91968.0,91967.0,0.52961868]
[1764696908308,0.50491,91968.0,91967.0,0.89041868]
[1764696909002,0.00016312,91977.0,91976.0,0.5189409]
[1764696909594,0.24464312,91977.0,91976.0,0.5189409]
[1764696909791,0.50507312,91977.0,91976.0,0.5189409]
[1764696910303,0.50507312,91977.0,91976.0,1.0323009]
[1764696910509,0.5157819,91968.0,91967.0,0.5725953]
[1764696910806,0.5157819,91968.0,91967.0,0.87412]
[1764696911398,0.5157819,91968.0,91967.0,0.51332]
[1764696911603,0.5167819,91968.0,91967.0,0.52532]
[1764696912199,0.5167819,91968.0,91967.0,0.012]
[1764696912501,0.50591,91968.0,91967.0,0.012]
[1764696912698,0.50591,91968.0,91967.0,0.52007]
[1764696912894,0.24548,91968.0,91967.0,0.52007]
[1764696913104,0.001,91968.0,91967.0,0.52007]
[1764696913505,0.50591,91968.0,91967.0,0.52007]
[1764696913709,0.50591,91968.0,91967.0,0.012]
[1764696913906,0.50591,91968.0,91967.0,0.52007]
[1764696914818,0.001,91968.0,91967.0,0.52007]
[1764696915307,0.001,91968.0,91967.0,0.44287]
[1764696916199,0.001,91968.0,91967.0,0.56487]
[1764696917316,8e-05,91980.0,91967.0,0.56487]
[1764696917317,3.12e-06,91980.0,91979.0,0.5189406]
[1764696917611,0.50491,92001.0,92000.0,0.010868]
[1764696917807,0.50491,92001.0,92000.0,0.524028]
[1764696918310,0.50491,92001.0,92000.0,0.010868]
[1764696918513,0.3608,92005.0,92000.0,0.010868]
[1764696918514,0.00027172,92006.0,92005.0,0.50807]
[1764696918811,0.00027172,92006.0,92005.0,0.86887]
[1764696919208,0.50518172,92006.0,92005.0,0.62046]
[1764696919404,0.86598172,92006.0,92000.0,0.004]
[1764696919604,0.50491,91977.0,91976.0,0.3608]
[1764696919803,0.50491,91965.0,91964.0,0.25966]
[1764696920007,0.50491,91971.0,91970.0,0.0108715]
[1764696920408,0.50491,91971.0,91970.0,0.2705315]
[1764696920604,0.86571,91977.0,91976.0,0.0108709]
[1764696921010,0.50491,91977.0,91976.0,0.0108709]
[1764696921209,0.50491,91976.0,91971.0,0.0108715]
[1764696921413,0.50491,91970.0,91969.0,0.51304]
[1764696921802,0.002,91971.0,91970.0,0.50807]
[1764696922118,0.002,91971.0,91970.0,1.02111]
[1764696922318,0.007,91971.0,91970.0,1.02111]
[1764696922813,0.005,91971.0,91970.0,1.02111]
[1764696923410,0.001,91976.0,91975.0,0.5702011]
[1764696923610,0.00016312,91980.0,91979.0,0.5702006]
[1764696923912,0.00016312,91980.0,91979.0,0.9310006]
[1764696924109,0.29387312,91980.0,91979.0,0.9310006]
[1764696924315,0.59831312,91980.0,91979.0,0.9310006]
[1764696924813,0.00016312,91980.0,91979.0,0.9310006]
[1764696925018,0.29387312,91980.0,91979.0,0.9310006]
[1764696925317,0.59831312,91980.0,91979.0,0.122]
[1764696925514,0.59831312,91980.0,91979.0,0.12216316]
[1764696925714,0.60531312,91980.0,91979.0,0.12216316]
[1764696926218,0.60731312,91980.0,91979.0,0.12216316]
[1764696926613,0.00916312,91980.0,91979.0,1.05316376]
[1764696926813,0.60531312,91980.0,91979.0,0.7678106]
[1764696927019,0.60731312,91980.0,91979.0,1.00679376]
[1764696927719,0.78048312,91980.0,91979.0,1.00679376]
[1764696928516,0.78148312,91980.0,91979.0,1.00779376]
[1764696928714,0.78148312,91980.0,91979.0,0.49483376]
[1764696929814,0.77948312,91980.0,91979.0,0.49483376]
[1764696930015,0.78148312,91980.0,91979.0,0.49483376]
[1764696930315,0.78148312,91980.0,91979.0,0.00042875]
[1764696930722,0.6090224,91964.0,91963.0,0.122]
[1764696930924,0.59815,91962.0,91946.0,0.0108744]
[1764696931123,0.59815,91962.0,91949.0,0.0108741]
[1764696931317,0.76192,91944.0,91943.0,0.122]
[1764696931517,0.76192,91944.0,91943.0,0.0108748]
[1764696931713,0.59815,91944.0,91943.0,0.37183796]
[1764696931917,0.76192,91956.0,91955.0,0.0108734]
[1764696933226,0.60615,91956.0,91955.0,0.57228656]
[1764696933524,0.60615,91956.0,91955.0,0.00016316]
[1764696933525,0.78984,91956.0,91955.0,0.00016316]
[1764696934219,0.78984,91956.0,91955.0,0.56141316]
[1764696934220,0.01,91956.0,91955.0,0.56141316]
[1764696934420,0.01,91956.0,91955.0,1.07429316]
[1764696934728,0.0086,91956.0,91955.0,1.10378388]
[1764696934916,0.009,91956.0,91955.0,1.10478388]
[1764696935120,0.0088329,91956.0,91955.0,1.10478388]
[1764696935425,2e-08,91965.0,91964.0,0.5721224]
[1764696935626,0.5636,91990.0,91989.0,0.0108693]
[1764696935828,0.74529,92004.0,92003.0,0.0108678]
[1764696936018,0.74529,92004.0,92003.0,0.3716678]
[1764696936529,0.5636,91998.0,91997.0,0.0108684]
[1764696937024,0.5636,91998.0,91997.0,0.01103156]
[1764696937220,0.5636,91998.0,91997.0,0.02141643]
[1764696937726,0.5636,91998.0,91997.0,0.00016316]
[1764696938229,0.5636,91998.0,91997.0,0.0109752]
[1764696938631,0.5636,91998.0,91997.0,0.0149752]
[1764696939133,0.5636,91998.0,91997.0,0.00416316]
[1764696939524,0.5636,91998.0,91997.0,0.004]
[1764696939720,0.5636,91998.0,91997.0,0.00616316]
[1764696939917,0.0108685,91997.0,91981.0,0.3608]
[1764696940123,0.28358,91970.0,91969.0,0.3039118]
[1764696940433,0.28358,91976.0,91975.0,0.572121]
[1764696940727,0.5636,91976.0,91975.0,0.57228416]
[1764696941234,0.5636,91976.0,91975.0,0.31452297]
[1764696941734,0.5636,91976.0,91975.0,0.29320316]
[1764696941923,0.5686,91976.0,91975.0,0.0218032]
[1764696942318,0.5636,91976.0,91975.0,0.0218032]
[1764696942522,0.5706,91976.0,91975.0,0.0218032]
[1764696942818,0.5706,91976.0,91975.0,0.00016316]
[1764696942819,0.9314,91976.0,91975.0,0.00016316]
[1764696943015,0.574472,91967.0,91966.0,0.00016312]
[1764696943220,0.5636,91967.0,91966.0,0.00016312]
[1764696943423,0.5636,91967.0,91966.0,0.00032628]
[1764696944231,0.3678,91976.0,91973.0,0.0108711]
[1764696944232,0.26395,91974.0,91973.0,0.0108711]
[1764696944424,0.54816,91974.0,91973.0,0.0108711]
[1764696944631,0.54816,91974.0,91973.0,0.2952211]
[1764696944825,0.26395,91974.0,91973.0,0.5656211]
[1764696945026,0.002,91976.0,91975.0,0.55475]
[1764696945521,0.26395,91976.0,91975.0,0.55475]
[1764696945921,0.54816,91976.0,91975.0,0.55475]
[1764696946631,0.54816,91969.0,91968.0,0.01061488]
[1764696946930,0.54816,91967.0,91966.0,0.00032628]
[1764696947137,0.54816,91967.0,91966.0,0.51304628]
[1764696947433,0.26395,91967.0,91966.0,0.55507628]
[1764696947636,0.26395,91967.0,91966.0,1.06775628]
[1764696948434,0.55016,91967.0,91966.0,0.56596209]
[1764696948636,0.55016,91967.0,91966.0,0.80824209]
[1764696948831,0.55016,91967.0,91966.0,0.01121209]
[1764696949635,0.55216,91967.0,91966.0,0.56596209]
[1764696949836,0.55216,91967.0,91966.0,0.01121209]
[1764696950735,0.55416,91967.0,91966.0,0.01121209]
[1764696951229,0.91496,91967.0,91966.0,0.00016312]
[1764696951437,0.91496,91967.0,91966.0,0.00032628]
[1764696951632,0.54816,91944.0,91943.0,0.3608]
[1764696951929,0.54816,91944.0,91943.0,1.43891236]
[1764696952433,0.54816,91944.0,91943.0,1.16851236]
[1764696953132,0.54916,91944.0,91943.0,1.16851236]
[1764696953821,0.70484,91944.0,91943.0,0.37152236]
[1764696954026,0.70784,91944.0,91943.0,0.01072236]
[1764696954226,0.70784,91944.0,91942.0,0.0144048]
[1764696954227,0.5590348,91943.0,91942.0,0.0144048]
[1764696954428,0.54816,91943.0,91942.0,0.0144048]
[1764696954630,0.54816,91943.0,91942.0,0.0251469]
[1764696954828,0.003,91944.0,91943.0,0.55475]
[1764696955130,0.54816,91943.0,91942.0,0.0251469]
[1764696955939,0.54816,91943.0,91942.0,0.5798969]
[1764696956236,0.54916,91943.0,91942.0,0.5798969]
[1764696957033,0.55116,91943.0,91942.0,0.5798969]
[1764696957440,0.001,91943.0,91942.0,0.5798969]
[1764696957645,0.55216,91943.0,91942.0,0.5798969]
[1764696958137,0.54916,91943.0,91942.0,0.5798969]
[1764696958326,0.55316,91943.0,91942.0,0.5798969]
[1764696959332,0.005,91943.0,91942.0,0.5798969]
[1764696959634,0.00016312,91953.0,91952.0,0.5656238]
[1764696959946,0.00016312,91953.0,91942.0,0.0142721]
[1764696959947,0.54832312,91953.0,91942.0,0.0142721]
[1764696960244,0.00016312,91953.0,91952.0,0.55475]
[1764696960736,0.00016312,91953.0,91949.0,0.8734]
[1764696960737,0.5590338,91952.0,91949.0,0.3608]
[1764696961042,0.26395,91943.0,91942.0,0.579897]
[1764696961248,0.54816,91943.0,91942.0,1.092497]
[1764696961839,0.54816,91943.0,91942.0,0.0142721]
[1764696962040,0.54816,91943.0,91942.0,0.5690221]
[1764696962041,0.54916,91943.0,91942.0,0.5690221]
[1764696962340,0.001,91943.0,91942.0,0.5690221]
[1764696962544,0.5590358,91935.0,91934.0,0.00016312]